Cogmind - Beta 15 @@@ ROGUE MODE // 2025.05.20 @ 15:45:09 Player: Findu Result: Destroyed by A9-MMM(h) with Bolt Gun Performance ------------- Evolutions (0) 0 Regions Visited (4) 800 Robots Destroyed (18) 90 Value Destroyed (405) 405 Prototype IDs (0) 0 Alien Tech Used (0) 0 Bonus (807) 807 TOTAL SCORE: 2102 Bonus ------- Follower Combat Kills 7 Registered with UFD 300 Met Optimus in HQ 500 Cogmind --------- Core Integrity 0/250 Matter 300/300 Energy 99/100 System Corruption 0% Temperature Cool (0) Movement Core (50) Location -8/Scraptown Parts ------- > --- POWER (1) -------- (None) > --- PROPULSION (2) --- (None) > --- UTILITY (2) ------ Signal Interpreter > --- WEAPON (2) ------- Hammer > --- INVENTORY (5) ---- Light Treads Scrap Suit Improved Heat Sink Botcube Peak State ------------ > --- POWER ------------ Ion Engine > --- PROPULSION ------- Light Treads Wheel > --- UTILITY ---------- Medium Storage Unit Signal Interpreter > --- WEAPON ----------- Beam Rifle Grenade Launcher > --- INVENTORY -------- Ion Engine Light Treads Compact Wheel Flight Unit Improved Heat Sink Targeting Computer Light Armor Plating Assault Rifle Hammer Botcube [Rating: 10] Favorites ----------- Power Ion Engine Engine Ion Engine Propulsion Light Treads Treads Light Treads Wheel Wheel Utility Medium Storage Unit Storage Medium Storage Unit Processor Signal Interpreter Weapon Beam Rifle Energy Gun Beam Rifle Ballistic Gun Assault Rifle Launcher Grenade Launcher Impact Weapon Hammer Build | -11 -10 -10 -10 -8 ------- Run | Yrd Mat Min Sub Scr Slots Evolved . | . . . . . Power . | . . . . . Propulsion . | . . . . . Utility . | . . . . . Weapon . | . . . . . Parts Attached 19 | 6 8 4 . 1 Power 1 | 1 . . . . Engine 1 | 1 . . . . Core . | . . . . . Reactor . | . . . . . Propulsion 6 | 2 2 2 . . Treads 2 | . 1 1 . . Leg . | . . . . . Wheel 4 | 2 1 1 . . Hover . | . . . . . Flight . | . . . . . Utility 4 | 1 3 . . . Device . | . . . . . Storage 2 | 1 1 . . . Processor 2 | . 2 . . . Hackware . | . . . . . Protection . | . . . . . Artifact . | . . . . . Weapon 8 | 2 3 2 . 1 Energy Gun 3 | 2 . 1 . . Energy Cannon . | . . . . . Ballistic Gun 3 | . 3 . . . Ballistic Cannon . | . . . . . Launcher 1 | . . 1 . . Special Weapon . | . . . . . Impact Weapon 1 | . . . . 1 Slashing Weapon . | . . . . . Piercing Weapon . | . . . . . Special Melee Weapon . | . . . . . Unidentified Prototypes . | . . . . . Parts Lost 6 | . 1 . . 5 Power 1 | . . . . 1 Propulsion 3 | . 1 . . 2 Utility . | . . . . . Weapon 2 | . . . . 2 Highest Loss Streak 5 | . 1 . . 5 To Critical Strikes . | . . . . . Average Backups 9 | 1 8 10 10 9 Power . | . 1 1 1 1 Propulsion 2 | . 2 3 3 2 Utility 2 | . 1 3 3 3 Weapon 2 | . 2 3 3 2 Tool/Special . | . . . . . Unused Backups 11 | . 2 1 . 8 Power 2 | . 1 . . 1 Propulsion 2 | . . . . 2 Utility 5 | . . 1 . 4 Weapon 1 | . . . . 1 Tool/Special 1 | . 1 . . . Average Slot Usage (%) 98 | . 95 100 100 99 Engine 13 | . 14 14 14 13 Treads 13 | . 12 14 14 13 Wheel 13 | . 12 14 14 13 Storage 13 | . 14 14 14 13 Processor 13 | . 13 14 14 14 Energy Gun 10 | . 1 11 14 13 Ballistic Gun 7 | . 26 6 . . Launcher 9 | . . 10 14 13 Peak Build Rating 10 | 6 8 9 9 10 Average Rating 8 | 4 6 8 9 9 On Entrance 6 | . 6 8 9 9 Naked Turns . | . . . . . Heaviest Build 21 | 13 19 21 21 21 Greatest Support 26 | 26 26 20 10 20 Greatest Overweight (x) 4 | 4 1 2 2 2 Average Overweight (x) 1 | . . 1 2 1 Largest Inventory Capacity 10 | 8 10 10 10 10 Average Capacity 9 | 7 9 10 10 9 Most Carried 10 | 4 10 10 10 10 Average Carried 9 | 1 8 9 10 9 Final Capacity 10 | 8 10 10 10 5 Final Carried 10 | 4 10 10 10 5 Class Distribution -------------------- 100% | Mutant Dominant Class ---------------- Mutant | -10/Materials Mutant | -10/Mines Mutant | -10/Subcaves Mutant | -8/Scraptown Resources | -11 -10 -10 -10 -8 ----------- Run | Yrd Mat Min Sub Scr Matter Collected 623 | 164 199 240 20 . Remotely . | . . . . . Salvage Created 392 | . 199 75 62 56 Parts 29 | . 19 5 5 . Haulers Intercepted . | . . . . . Recyclers Shooed 1 | . 1 . . . Parts Field Recycled . | . . . . . Retrieved Matter . | . . . . . Parts Self-Destructed 5 | . . . 5 . Prevented . | . . . . . Kills | -11 -10 -10 -10 -8 ------- Run | Yrd Mat Min Sub Scr Combat Hostiles Destroyed 17 | . 11 3 2 1 Melee 1 | . . . . 1 Guns 12 | . 11 1 . . AOE 4 | . . 2 2 . Classes Destroyed 4 | . 2 1 . 1 Builder 1 | . . 1 . . Swarmer 10 | . 9 1 . . Grunt 6 | . 2 2 2 . Explorer 1 | . . . . 1 Best Kill Streak 8 | . 8 2 2 1 Combat Bots Only 8 | . 8 2 2 1 Max Kills in Single Turn 2 | . 2 2 2 1 Gunslinging 1 | . 1 . . . Exploded 2 | . . 2 2 . Melee 1 | . . . . 1 Uniques/NPCs Destroyed . | . . . . . Combat | -11 -10 -10 -10 -8 -------- Run | Yrd Mat Min Sub Scr Hostile Shots Fired 96 | . 61 9 4 22 Missed 27 | . 18 4 . 5 Hits 69 | . 43 5 4 17 Melee 4 | . . . . 4 Projectile 65 | . 43 5 4 13 Critical Strikes 2 | . 1 . . 1 Damage Taken 908 | . 367 101 52 388 Core 252 | . 60 38 14 140 Absorbed by Shields . | . . . . . Core Remaining (%) 100 | 100 . . . . Volleys Fired 37 | . 23 8 2 4 Largest 2 | . 2 2 2 2 Hottest 86 | . 40 86 86 86 Shots Fired 71 | . 46 16 4 5 Gun 60 | . 46 8 2 4 Cannon . | . . . . . Launcher 11 | . . 8 2 1 Special . | . . . . . Kinetic 46 | . 46 . . . Thermal 14 | . . 8 2 4 Explosive 11 | . . 8 2 1 Electromagnetic . | . . . . . Robot Hit Streak 10 | . 8 10 1 3 Robot Miss Streak 5 | . 3 5 1 1 Penetration Max . | . . . . . Secondary Targets 4 | . 4 . . . Max Gunslinging Chain 1 | . 1 . . . Shots Hit Robots 44 | . 31 5 2 6 Core Hits 26 | . 13 6 5 2 Critical Kills . | . . . . . Critical Parts Destroyed 1 | . . . . 1 Critical Strikes 3 | . . 1 . 2 Burn 2 | . . 1 . 1 Smash 1 | . . . . 1 Melee Attacks 3 | . . . . 3 Impact 3 | . . . . 3 Slashing . | . . . . . Piercing . | . . . . . Sneak Attacks . | . . . . . Combat Hostiles . | . . . . . Follow-up Attacks . | . . . . . Damage Inflicted 904 | . 427 270 127 80 Guns 499 | . 427 29 14 29 Cannons . | . . . . . Explosions 382 | . . 241 113 28 Melee 23 | . . . . 23 Ramming . | . . . . . Kinetic 427 | . 427 . . . Thermal 72 | . . 29 14 29 Explosive 382 | . . 241 113 28 Electromagnetic . | . . . . . Impact 23 | . . . . 23 Slashing . | . . . . . Piercing . | . . . . . Highest Corruption . | . . . . . Average Corruption . | . . . . . Corruption Purged . | . . . . . Corruption Blocked . | . . . . . Overload Shots . | . . . . . Overflow Damage 9 | . . 1 . 8 Projectiles . | . . . . . Explosions 1 | . . 1 . . Melee 8 | . . . . 8 Knockbacks 1 | . . . . 1 Impact 1 | . . . . 1 Kinetic . | . . . . . Secondary . | . . . . . Self-Inflicted Damage 68 | . . 68 . . Shots 2 | . . 2 . . Rammed . | . . . . . Targets Rammed . | . . . . . Kicked . | . . . . . Crushed . | . . . . . Highest Temperature 96 | . . 96 3 54 Average Temperature 31 | . . 34 3 23 Received Heat Transfer 210 | . 36 . 30 144 Siege Activations . | . . . . . Martial Activations . | . . . . . Shielding Activations . | . . . . . Robots Disrupted . | . . . . . Combat Hostiles . | . . . . . Robots Corrupted . | . . . . . Combat Hostiles . | . . . . . Parts Fried . | . . . . . Impact Corruptions 1 | . . . . 1 Robots Melted . | . . . . . Combat Hostiles . | . . . . . Parts Melted . | . . . . . Heat Transferred 333 | . . 148 37 148 Parts Sabotaged . | . . . . . Parts Stolen . | . . . . . Parts Stripped . | . . . . . Power Chain Reactions . | . . . . . Alert | -11 -10 -10 -10 -8 ------- Run | Yrd Mat Min Sub Scr Maximum Alert Level . | . . . . . Low Security (%) 100 | 100 100 100 . . Level 1 . | . . . . . Level 2 . | . . . . . Level 3 . | . . . . . Level 4 . | . . . . . Level 5 . | . . . . . High Security . | . . . . . Max Security . | . . . . . Peak Influence 155 | . 155 134 . . Initial 36 | . . 36 . . Average 43 | . 43 48 . . Influence Increases 517 | . 270 191 56 . Destroy 0b10 Robot/C 340 | . 220 80 40 . Destroy 0b10 Robot/NC 5 | . . 5 . . Destroy Leader 60 | . 30 20 10 . Allied During Kill 12 | . . 6 6 . Successful Hack 4 | . 4 . . . Disable Machine 45 | . . 45 . . Destroy Structure 36 | . 1 35 . . Lose Combat Pursuer 15 | . 15 . . . Influence Decreases 517 | . 175 235 71 36 Entered New Map 122 | . . 59 27 36 Time Decay 385 | . 165 176 44 . Lost Part 10 | . 10 . . . Squads Dispatched . | . . . . . Investigation . | . . . . . Extermination . | . . . . . Reinforcement . | . . . . . Assault . | . . . . . Garrison . | . . . . . Intercept . | . . . . . Searches Triggered . | . . . . . Construction Impeded . | . . . . . Haulers Reinforced . | . . . . . Active Scanning Responses . | . . . . . Cargo Convoy Interrupts . | . . . . . Stealth | -11 -10 -10 -10 -8 --------- Run | Yrd Mat Min Sub Scr Distress Signals 4 | . 3 1 . . Communications Jammed . | . . . . . Distress Signals . | . . . . . Times Spotted 38 | . 19 7 2 10 Peak Tracking Total 10 | . 10 2 2 5 Tactical Retreats 1 | . 1 . . . Traps | -11 -10 -10 -10 -8 ------- Run | Yrd Mat Min Sub Scr Traps Triggered 1 | . 1 . . . Indirectly . | . . . . . Trap Hack Attempts . | . . . . . Triggered . | . . . . . Disarmed . | . . . . . Reprogrammed . | . . . . . Reused . | . . . . . Traps Extracted . | . . . . . Installed . | . . . . . Triggered . | . . . . . Machines | -11 -10 -10 -10 -8 ---------- Run | Yrd Mat Min Sub Scr Machines Disabled 4 | . . 3 . 1 Max in Single Turn 3 | . . 3 . 1 Machines Repaired . | . . . . . Machines Dismantled . | . . . . . Machines Sabotaged . | . . . . . Overloaded Fab Kills . | . . . . . Hacking | -11 -10 -10 -10 -8 --------- Run | Yrd Mat Min Sub Scr Machines Accessed 15 | . 5 . . 10 Terminals 5 | . 5 . . . Fabricators . | . . . . . Repair Stations . | . . . . . Recycling Units . | . . . . . Scanalyzers . | . . . . . Garrison Access . | . . . . . Total Hacks 80 | . 9 . . 71 Successful 72 | . 1 . . 71 Failed 8 | . 8 . . . Catastrophic . | . . . . . Database Lockouts . | . . . . . Manual . | . . . . . Terminals 9 | . 9 . . . Fabricators . | . . . . . Repair Stations . | . . . . . Recycling Units . | . . . . . Scanalyzers . | . . . . . Garrison Access . | . . . . . Terminal Hacks 72 | . 1 . . 71 Record 71 | . . . . 71 Dispatch Records 1 | . 1 . . . Fabricator Hacks . | . . . . . Repair Station Hacks . | . . . . . Recycling Unit Hacks . | . . . . . Scanalyzer . | . . . . . Garrison Access Hacks . | . . . . . Unauthorized Hacks . | . . . . . Terminals . | . . . . . Fabricators . | . . . . . Repair Stations . | . . . . . Recycling Units . | . . . . . Scanalyzers . | . . . . . Garrison Access . | . . . . . Data Cores Recovered . | . . . . . Used . | . . . . . Hacking Detections 4 | . 4 . . . Full Trace Events . | . . . . . Feedback Events . | . . . . . Feedback Blocked . | . . . . . Robot Schematics Acquired . | . . . . . Robots Built . | . . . . . Authchips . | . . . . . Time . | . . . . . Total Robot Build Rating . | . . . . . Part Schematics Acquired . | . . . . . Parts Built . | . . . . . Authchips . | . . . . . Time . | . . . . . Total Part Build Rating . | . . . . . Parts Repaired . | . . . . . Time . | . . . . . Parts Recycled . | . . . . . Recycled Matter . | . . . . . Retrieved Matter . | . . . . . Retrieved Components . | . . . . . Parts Scanalyzed . | . . . . . Part Schematics Acquired . | . . . . . Parts Damaged . | . . . . . Bothacking | -11 -10 -10 -10 -8 ------------ Run | Yrd Mat Min Sub Scr Used RIF Installer . | . . . . . Robots Hacked . | . . . . . Non-combat . | . . . . . Combat . | . . . . . Robot Hacks Applied . | . . . . . Relay Couplers Released . | . . . . . Fabnet Peak Effective % . | . . . . . Robots Rewired . | . . . . . Allies Hacked . | . . . . . Hacks Repelled . | . . . . . Allies | -11 -10 -10 -10 -8 -------- Run | Yrd Mat Min Sub Scr Total Allies 2 | . . 2 . . Largest Group 2 | . . 2 2 2 Highest-Rated Group 42 | . . 42 42 42 Highest-Rated Ally 31 | . . 31 31 31 Total Orders . | . . . . . Ally Attacks 10 | . . 4 . 6 Total Damage 166 | . . 63 . 103 Kills 2 | . . 2 . . Allies Corrupted . | . . . . . Allies Melted 5 | . . . . 5 Intel | -11 -10 -10 -10 -8 ------- Run | Yrd Mat Min Sub Scr Active Infowar (turns) . | . . . . . Robot Analysis Total . | . . . . . Derelict Logs Recovered 1 | . . 1 . . Drone Launches . | . . . . . Drone Recoveries . | . . . . . Exploration | -11 -10 -10 -10 -8 ------------- Run | Yrd Mat Min Sub Scr Turns Passed 2572 | 58 640 495 150 1229 Spaces Moved 2175 | 48 529 393 119 1086 Core 14 | 4 . . . 10 Treads 89 | . 55 21 . 13 Legs . | . . . . . Wheels 2072 | 44 474 372 119 1063 Hover . | . . . . . Flight . | . . . . . Fastest Speed 50 | 50 90 110 110 50 Average Speed 109 | 95 102 116 110 111 Slowest Speed 250 | 250 160 160 110 240 Overloaded Moves . | . . . . . Propulsion Burnouts . | . . . . . Robots Hopped . | . . . . . Potential Cave-ins . | . . . . . Cave-ins Triggered . | . . . . . Exploration Rate (%) 49 | 4 77 81 12 73 Regions Visited 4 Branch Regions 3 Pre-discovered Areas . | . . . . . Known Exits Taken 3 | . 1 1 1 . Unknown Exits Taken 1 | 1 . . . . Scrap Searched 1 | . . . . 1 Spaces Dug 17 | . . 17 . . Terrain Destroyed 52 | . . 36 8 8 Melee . | . . . . . Projectile . | . . . . . AOE 52 | . . 36 8 8 Terrain Rammed . | . . . . . Walls Destroyed . | . . . . . Machines Disabled . | . . . . . Actions | -11 -10 -10 -10 -8 --------- Run | Yrd Mat Min Sub Scr Total 2282 | 57 578 413 134 1100 Wait 19 | . 2 3 14 . Move 2171 | 47 528 392 118 1086 Hop . | . . . . . Pick Up 15 | 4 8 1 . 2 Fast Attach 15 | 6 6 3 . . Attach 1 | . . . . 1 Detach 3 | . 3 . . . Swap 4 | . 3 1 . . Drop 14 | . 5 5 . 4 Fire 37 | . 23 8 2 4 Melee 3 | . . . . 3 Ram . | . . . . . Kick . | . . . . . Crush . | . . . . . Escape Stasis . | . . . . . Rewire . | . . . . . Trap . | . . . . . Miscellaneous . | . . . . . Route ------- -11/Scrapyard -10/Materials (discovered 2 exits: *Mat / *Min) -10/Mines (discovered 2 exits: *Mat / *Sub) -10/Subcaves -8/Scraptown (discovered 1 exit: *Fac) History --------- Turn | Location | Event 15 | -11/Scrapyard | Discovered new exit (range 16) 59 | -11/Scrapyard | Entered Materials 268 | -10/Materials | Discovered new exit (range 14) 317 | -10/Materials | Build established: Mutant 475 | -10/Materials | Identified exit to Materials 578 | -10/Materials | Destroyed 8 combat bots 670 | -10/Materials | Discovered new exit (range 16) 698 | -10/Materials | Identified exit to Mines 699 | -10/Materials | Entered Mines 702 | -10/Mines | Met a Derelict bent on vengeance 765 | -10/Mines | Joined a pair of Derelicts in attacking an 0b10 outpost 804 | -10/Mines | Assembled infested the area 974 | -10/Mines | Discovered exit to Materials (range 10) 1012 | -10/Mines | Learned location of 1 exit from Materials 1129 | -10/Mines | Discovered new exit (range 11) 1141 | -10/Mines | Identified exit to Subcaves 1194 | -10/Mines | Entered Subcaves 1194 | -10/Subcaves | Accompanied by 2 allies 1195 | -10/Subcaves | Approached by a straggling Scientist 1199 | -10/Subcaves | Led the pair of lost Derelicts to an unsafe place 1327 | -10/Subcaves | Scientist uncovered a shortcut to Scraptown 1332 | -10/Subcaves | Identified exit to Scraptown 1344 | -10/Subcaves | Entered Scraptown 1344 | -8/Scraptown | Accompanied by 2 allies 1467 | -8/Scraptown | Visited Cave Peace 1505 | -8/Scraptown | Visited UFD Registry 1520 | -8/Scraptown | Visited Shadow of the Wyrm 1544 | -8/Scraptown | Visited TADAMA 1602 | -8/Scraptown | Visited Cyclists 1662 | -8/Scraptown | Discovered new exit (range 5) 1667 | -8/Scraptown | Identified exit to Factory 1902 | -8/Scraptown | Visited Bundlers 1929 | -8/Scraptown | Visited Comm Corps 1996 | -8/Scraptown | Visited Fellowship of the Rings 2031 | -8/Scraptown | Registered with UFD as "Pyrolauncher" 2078 | -8/Scraptown | Entered Cyclist Reading Room 2204 | -8/Scraptown | Visited Botcube Research 2213 | -8/Scraptown | Found Botcube 2234 | -8/Scraptown | Visited Abandonware Association 2247 | -8/Scraptown | Learned abandonware demo "KABOOM.EXE" 2296 | -8/Scraptown | Met Optimus 2296 | -8/Scraptown | Accepted into 0bPrime 2380 | -8/Scraptown | Visited Modified Component R&D 2456 | -8/Scraptown | Found Scrap Suit 2468 | -8/Scraptown | Civil war broke out across Scraptown 2549 | -8/Scraptown | Core integrity fell below 50% 2565 | -8/Scraptown | Core integrity fell below 20% 2573 | -8/Scraptown | Destroyed by A9-MMM(h) with Bolt Gun Last Messages --------------- 02521_ NJ-IKK(h): "Stop this nonsense!" 02521_ NJ-IKK(h) suffers critical hit (Destroy). 02521_ NJ-IKK(h) destroyed. 02532_ 5R-BOS(g) destroyed. 02541_ T5-6UJ(j) destroyed. 02546_ Supplies damaged. 02549_ Ion Engine destroyed. 02551_ Critical hit (Impale). 02552_ 1F-I6Q(x) suffers critical hit (Burn). 02558_ Beam Rifle destroyed. 02560_ Wheel destroyed. 02560_ Grenade Launcher destroyed. 02560_ Lgt. Treads destroyed. 02562_ 1F-I6Q(x) knocked back. 02565_ 1F-I6Q(x) suffers critical hit (Smash). 02565_ Destroyed VSS Leg. 02565_ 1F-I6Q(x) system corrupted by crushing effect. 02565_ 1F-I6Q(x) destroyed. 02568_ Dropped Med. Storage Unit. 02569_ The unstable cave ceiling collapses. Map ----- +----------------------------------------------------+ | | | | | | | | | | | | | | | | | ?????????????????????????????????????????????????? | | ?????????????????????????????????????????????????? | | ?????????????????????????????????????????????????? | | ?????????????????????????????????????????????????? | | ?????????????????????????????????????????????????? | | ?????????????????????????????????????????????????? | | ?????????????????????????????????????????????????? | | ?????????????????????????????????????????????????? | | ?????????????????????????????????????????????????? | | ?????????????????????????????????????????????????? | | ?????????????????????????????????????????????????? | | ??????????????????????????????#??????????????????? | | ????????????????????????????? #??????????????????? | | ?????###################???#;[#??????????????????? | | ????#"""##"""##""|## " ####!!!##????????#????????? | | ????#"" ##"" ##""|# ! ##=!==#####%[g=##???????? | | ????#"" *[= !%%!%* %h%=!=!#???????? | | ????# !!% @[%=*=%=%[jg[%*!#???????? | | ????############### # ###*=*%###########???????? | | ??????????????????#######?## =###########????????? | | ???????????????????????????# #"""""""""?????????? | | ???????????????????????????# #"""""""#??????????? | | ?????????????????########### #" " [[#??????????? | | ?????????????????#"""""""""# #"= #+####?????? | | ?????????????????# " " " # #" """#?????? | | ?????????????????# # #"[ ="#?????? | | ?? #?###"#######?# "# #" # """""" ""#?????? | | ?" #?"" """"#?# "#X#" # #####" "#?????? | | #" ##"" """#?# "###" # """""" X#?????? | | "" ## " [ ""#?# """"" # =" [ ##?????? | | ?#" """#?# #[%[ "#?????? | | "???#" #?# #%!# "#?????? | | ????###### #####?##### ##### ## ###########?????? | | ########## ########### ##### ## ##??????????????? | | """""""""" """"""""""" """"" "" "#?????"????????? | | "#???? ?????????? | | "#??? "?????????? | | "#?? "?????????? | | "## "?????????? | | "?????????? | | """""""""""""""""""""""""""" "## "?????????? | | """""""""""""""""""""""""""" "#?? ??????? | +----------------------------------------------------+ Best States ------------- Heat Dissipation 25 Energy Generation 10 Energy Capacity 250 Matter Stores 300 Matter Capacity 300 Sight Range 16 Terrain Scan Density 10 Evasion (%) 50 Targeting Accuracy 5 Recoil Reduction 1 Item Schematics ----------------- None Robot Schematics ------------------ None Fabricated ------------ Nothing Repaired ---------- Nothing Alien Tech Used ----------------- None Achievements -------------- None Challenges ------------ None Game ------ Seed FrostSiegeShotgun Manual? 0 Play Time 00:44:55 Cumulative 48.6 hours Start 2025.05.20 @ 13:32:47 End 2025.05.20 @ 15:45:09 Sessions 3 Manual Loads 0 Difficulty Rogue Special Mode None Game No. 35 Rogue 28 Adventurer 7 Explorer 0 Win Type - Total 0 Types 0/0/0/0/0/0/0/0/0/0 Lore% 32 Gallery% 37 Achievement% 33 Wizard Run 0 Options --------- Layout 0 ASCII 0 Keyboard 1 Movement Vi Keybinds 0 Fullscreen 2 Font 24/Terminus Map View 76x50 Zoom Use 0% Tactical HUD 1 Map Filters NONE Filters NONE Steam 1 RUN: 4595090d-ce5e-4323-891e-6f3627c31f52